bitfinex-derivatives/quotes_SOLF0:USTF0_20241017
["timestamp","ask_amount","ask_price","bid_price","bid_amount"]
[1729126002671,3.2225,155.17,155.14,12.13503706]
[1729126002872,3.2221,155.19,155.16,12.1324]
[1729126003675,3.2221,155.19,155.16,15.37753342]
[1729126003968,3.2222,155.18,155.16,15.37753342]
[1729126004677,3.2222,155.18,155.16,3.24513342]
[1729126004863,3.2222,155.18,155.15,4.6194]
[1729126005272,3.222,155.19,155.17,3.2224]
[1729126005778,3.222,155.19,155.16,8.91]
[1729126006078,3.222,155.19,155.16,12.1325]
[1729126009278,13.53,155.2,155.15,4.63937035]
[1729126009479,3.2222,155.18,155.15,7.86207035]
[1729126009978,3.2225,155.17,155.15,4.63937035]
[1729126010980,8.91,155.19,155.15,3.24267035]
[1729126011281,3.2226,155.16,155.14,3.2229]
[1729126011674,3.2226,155.16,155.14,6.47008256]
[1729126012483,8.91,155.16,155.11,1.4314]
[1729126012677,13.53,155.16,155.11,1.4314]
[1729126013582,3.2232,155.14,155.11,1.4314]
[1729126014684,3.2232,155.14,155.11,4.655]
[1729126015182,3.2232,155.14,155.11,13.565]
[1729126018874,13.53,155.16,155.11,10.3414]
[1729126019080,7.8426,155.16,155.13,3.2231]
[1729126019483,4.62,155.16,155.15,3.2228]
[1729126019685,4.62,155.16,155.15,3.25725338]
[1729126019884,4.62,155.16,155.14,8.91]
[1729126020189,4.62,155.16,155.12,8.91]
[1729126020582,7.8426,155.16,155.13,3.2231]
[1729126021986,13.53,155.16,155.11,1.4314]
[1729126022187,8.91,155.14,155.1,3.2237]
[1729126022784,3.2233,155.13,155.1,3.2237]
[1729126024785,3.2234,155.12,155.09,3.224]
[1729126025793,3.2234,155.12,155.1,3.2238]
[1729126027790,3.2233,155.13,155.1,12.1338]
[1729126030497,13.53,155.16,155.11,8.91]
[1729126030690,4.62,155.16,155.12,8.91]
[1729126030890,4.62,155.16,155.13,12.1331]
[1729126031400,8.91,155.18,155.07,5.9773]
[1729126031401,4.62,155.18,155.15,12.1327]
[1729126031693,4.62,155.18,155.15,12.06965953]
[1729126031893,7.8422,155.18,155.15,15.29245953]
[1729126032393,4.62,155.18,155.15,12.06965953]
[1729126033497,4.62,155.18,155.16,3.2225]
[1729126034899,3.2222,155.19,155.16,3.2225]
[1729126035099,3.2215,155.22,155.18,12.132]
[1729126035296,10.3206,155.23,155.17,8.91]
[1729126035490,8.91,155.19,155.12,90.93075727]
[1729126035688,8.91,155.15,155.12,89.59255727]
[1729126035898,8.91,155.15,155.1,13.53]
[1729126036496,12.1329,155.15,155.11,3.2235]
[1729126037103,3.2229,155.15,155.12,8.91]
[1729126037304,3.2231,155.14,155.11,3.2235]
[1729126043812,8.91,155.18,155.12,8.91]
[1729126044205,3.2228,155.16,155.12,12.1334]
[1729126045807,8.91,155.16,155.11,8.91]
[1729126046313,3.2231,155.14,155.11,8.91]
[1729126047412,8.91,155.15,155.1,3.2237]
[1729126047714,3.2233,155.13,155.1,3.2237]
[1729126047906,8.91,155.15,155.09,3.224]
[1729126047907,8.91,155.14,155.09,3.224]
[1729126048101,4.62,155.15,155.08,8.91]
[1729126048312,13.53,155.15,155.1,8.91]
[1729126049109,3.2232,155.13,155.1,12.1337]
[1729126050213,13.53,155.15,155.1,12.1337]
[1729126050414,3.2235,155.12,155.1,8.91]
[1729126051415,3.2235,155.12,155.1,12.1338]
[1729126051708,13.53,155.15,155.1,8.91]
[1729126051911,3.2233,155.13,155.1,8.91]
[1729126052805,7.8594,155.21,155.12,8.91]
[1729126053007,7.8594,155.21,155.15,8.91]
[1729126053008,13.53,155.2,155.15,8.91]
[1729126053205,8.91,155.19,155.14,8.91]
[1729126053408,8.91,155.18,155.13,3.2232]
[1729126054115,3.2227,155.16,155.13,3.2232]
[1729126055711,8.91,155.19,155.13,8.91]
[1729126055911,3.2223,155.18,155.15,12.1326]
[1729126056114,3.2223,155.18,155.15,15.32839372]
[1729126056316,8.91,155.19,155.15,12.10579372]
[1729126056615,3.2224,155.17,155.15,12.10579372]
[1729126058021,8.91,155.19,155.15,12.10579372]
[1729126058309,3.2221,155.19,155.16,3.2225]
[1729126059516,3.2222,155.18,155.15,15.32849372]
[1729126062125,8.91,155.18,155.15,3.19579372]
[1729126062323,3.2224,155.17,155.14,8.91]
[1729126062516,3.2224,155.17,155.14,12.09776588]
[1729126063419,3.2224,155.17,155.14,15.32066588]
[1729126064424,3.2226,155.16,155.14,6.41066588]
[1729126064625,3.2226,155.16,155.14,3.18776588]
[1729126064819,3.2226,155.16,155.13,12.1331]
[1729126071838,8.91,155.18,155.13,3.2231]
[1729126072033,3.2228,155.15,155.14,8.91]
[1729126072236,3.2228,155.15,155.14,12.08584117]
[1729126072728,3.2228,155.15,155.14,3.17584117]
[1729126072935,8.91,155.17,155.1,4.62]
[1729126073137,3.2231,155.14,155.11,8.91]
[1729126073431,3.2231,155.14,155.11,12.1335]
[1729126073640,3.2232,155.14,155.11,12.1335]
[1729126074136,8.91,155.14,155.08,1.3833]
[1729126074335,8.91,155.14,155.09,8.91]
[1729126075038,8.91,155.13,155.07,8.91]
[1729126075234,4.62,155.12,155.07,8.91]
[1729126075737,4.62,155.12,155.08,8.91]
[1729126076739,3.2238,155.11,155.08,12.1341]
[1729126079142,3.2238,155.11,155.08,3.2241]
[1729126079344,3.2238,155.11,155.09,8.91]
[1729126080141,4.62,155.12,155.07,3.27089708]
[1729126080333,3.224,155.1,155.07,8.91]
[1729126080538,8.91,155.1,155.05,8.91]
[1729126080940,3.2244,155.08,155.05,8.91]
[1729126081138,8.91,155.1,155.06,3.2247]
[1729126081340,8.91,155.11,155.07,8.91]
[1729126082240,1.4182,155.15,155.09,8.91]
[1729126082444,1.3346,155.16,155.06,4.62]
[1729126082635,7.8428,155.15,155.12,8.91]
[1729126082847,7.8428,155.15,155.12,12.10767542]
[1729126083140,8.91,155.13,155.07,10.3258]
[1729126083447,4.62,155.15,155.07,10.3258]
[1729126083448,8.91,155.11,155.07,8.91]
[1729126083643,3.224,155.1,155.07,8.91]
[1729126084641,3.224,155.1,155.07,12.1344]
[1729126087354,7.8437,155.11,155.08,3.2241]
[1729126088547,7.8437,155.11,155.08,12.1341]
[1729126090239,4.62,155.13,155.1,12.1338]
[1729126091149,7.8433,155.13,155.1,12.1338]
[1729126091449,7.8433,155.13,155.09,12.134]
[1729126091450,4.62,155.13,155.09,12.134]
[1729126092549,3.2235,155.12,155.09,12.134]
[1729126095650,8.91,155.19,155.11,8.91]
[1729126095850,4.62,155.18,155.14,8.91]
[1729126096552,4.62,155.18,155.14,12.14574929]
[1729126096754,3.2227,155.16,155.14,12.14574929]
[1729126099756,3.2228,155.15,155.14,12.14574929]
[1729126101157,4.62,155.17,155.15,3.2228]
[1729126101352,4.62,155.17,155.16,8.91]
[1729126102158,4.62,155.17,155.16,12.08217304]
[1729126102454,4.62,155.2,155.16,15.30457304]
[1729126102760,4.62,155.2,155.18,8.91]
[1729126103157,3.222,155.19,155.18,8.91]
[1729126104255,3.222,155.19,155.17,8.91]
[1729126107863,3.2222,155.18,155.17,8.91]
[1729126108667,8.91,155.19,155.09,4.0109]
[1729126108960,8.91,155.14,155.09,10.2342]
[1729126109259,13.53,155.14,155.09,10.2342]
[1729126109965,3.2238,155.11,155.09,10.2342]
[1729126110164,4.62,155.14,155.1,8.91]
[1729126110466,7.8431,155.14,155.11,8.91]
[1729126110666,7.8431,155.14,155.11,12.1916629]
[1729126111360,7.8431,155.14,155.11,15.4152629]
[1729126111770,7.8431,155.14,155.11,6.5052629]
[1729126112458,7.8431,155.14,155.11,3.2816629]
[1729126112659,7.8431,155.14,155.1,3.2237]
[1729126113368,4.62,155.14,155.12,3.2233]
[1729126113573,4.62,155.14,155.13,3.14441499]
[1729126113969,4.62,155.14,155.09,15.2642]
[1729126114474,4.62,155.14,155.11,3.2235]
[1729126114671,4.62,155.14,155.11,17.1627595]
[1729126114981,4.62,155.16,155.11,17.1627595]
[1729126115168,4.62,155.16,155.12,3.2233]
[1729126116572,3.2229,155.15,155.12,3.2233]
[1729126117174,7.8426,155.16,155.13,3.2231]
[1729126117370,4.62,155.16,155.11,17.1627595]
[1729126118375,7.8426,155.16,155.13,3.223]
[1729126119172,3.2226,155.16,155.13,3.223]
[1729126119777,3.2226,155.16,155.14,3.223]
[1729126123080,3.2232,155.14,155.11,20.3863595]
[1729126123278,18.56,155.18,155.11,3.2227595]
[1729126123479,18.56,155.18,155.09,15.2642]
[1729126123684,18.56,155.18,155.09,18.4881]
[1729126124382,18.56,155.18,155.1,3.2238]
[1729126124383,3.2234,155.13,155.1,3.2238]
[1729126125880,13.94,155.18,155.09,15.2642]
[1729126126083,4.62,155.17,155.11,13.94]
[1729126126381,4.62,155.17,155.11,3.30388806]
[1729126126581,4.62,155.17,155.1,13.94]
[1729126126777,3.2229,155.15,155.11,3.2234]
[1729126126983,3.2229,155.15,155.11,6.39929786]
[1729126127382,4.62,155.17,155.11,3.17589786]
[1729126127581,3.2234,155.12,155.09,1.3242]
[1729126129487,4.62,155.17,155.09,1.3242]
[1729126130497,3.2233,155.13,155.1,3.2238]
[1729126130701,7.8433,155.13,155.1,3.2238]
[1729126132394,3.2237,155.11,155.08,3.2242]
[1729126132588,4.62,155.13,155.07,13.94]
[1729126133399,7.8433,155.13,155.1,3.2237]
[1729126133793,7.8433,155.13,155.11,8.92]
[1729126133993,7.8433,155.13,155.11,12.09739231]
[1729126140501,7.8433,155.13,155.11,3.17739231]
[1729126140502,4.62,155.13,155.11,3.17739231]
[1729126140810,8.92,155.12,155.06,8.92]
[1729126141300,8.92,155.12,155.06,12.1446]
[1729126142207,3.2238,155.11,155.06,12.1446]
[1729126142408,8.92,155.12,155.06,12.1446]
[1729126142906,3.224,155.1,155.08,8.92]
[1729126143406,3.2241,155.09,155.07,8.92]
[1729126143906,3.2236,155.12,155.08,8.92]
[1729126144202,4.62,155.12,155.09,8.92]
[1729126144406,13.54,155.12,155.08,8.92]
[1729126144607,3.2242,155.09,155.07,8.92]
[1729126144805,13.54,155.12,155.07,12.0757562]
[1729126145706,3.224,155.1,155.07,12.0757562]
[1729126146005,3.224,155.1,155.08,8.92]
[1729126146804,3.224,155.1,155.09,3.21347836]
[1729126153021,4.62,155.12,155.09,3.21347836]
[1729126153220,3.2237,155.11,155.09,3.21347836]
[1729126153520,4.62,155.12,155.09,3.21347836]
[1729126153722,3.2238,155.1,155.09,3.21347836]
[1729126160324,3.2238,155.1,155.09,12.13347836]
[1729126163226,4.62,155.12,155.09,12.13347836]
[1729126163227,1.3756,155.15,155.09,12.13347836]
[1729126163425,4.62,155.14,155.11,8.92]
[1729126164524,3.2232,155.13,155.11,8.92]
[1729126164725,3.2232,155.13,155.12,3.28506933]
[1729126166122,3.2232,155.13,155.1,12.1438]
[1729126166323,3.2232,155.13,155.1,15.43715825]
[1729126170830,3.2236,155.11,155.1,3.29335825]
[1729126171032,8.92,155.13,155.07,12.1444]
[1729126171228,10.2421,155.13,155.07,12.1444]
[1729126171525,3.2238,155.11,155.07,15.40357672]
[1729126173529,3.224,155.1,155.08,8.92]
[1729126175632,3.2231,155.14,155.1,3.2237]
[1729126175832,3.2231,155.14,155.12,8.92]
[1729126175833,7.8431,155.14,155.12,8.92]
[1729126176331,3.2233,155.13,155.11,8.92]
[1729126185340,4.62,155.16,155.13,3.223]
[1729126185535,4.62,155.17,155.15,8.92]
[1729126185741,4.62,155.17,155.16,8.92]
[1729126185940,4.62,155.17,155.16,12.09621545]
[1729126186445,7.8424,155.17,155.16,12.09621545]
[1729126186634,4.62,155.17,155.16,12.09621545]
[1729126191960,6.4401,155.29,155.16,12.09621545]
[1729126192142,8.92,155.25,155.2,8.92]
[1729126192348,4.62,155.24,155.2,8.92]
[1729126193050,3.2216,155.21,155.2,12.17296837]
[1729126194250,3.2216,155.21,155.2,3.25296837]
[1729126195767,3.2216,155.21,155.2,12.17296837]
[1729126199952,3.2216,155.21,155.2,3.25296837]
[1729126200254,3.2216,155.21,155.19,8.92]
[1729126200753,3.2216,155.21,155.2,3.19895353]
[1729126204049,13.54,155.24,155.15,2.6831]
[1729126204252,8.92,155.19,155.15,3.20539913]
[1729126204552,8.92,155.16,155.1,8.92]
[1729126204754,3.2236,155.12,155.1,8.92]
[1729126204946,3.2236,155.12,155.09,2.7337]
[1729126205142,3.2236,155.12,155.1,8.92]
[1729126205647,3.2233,155.13,155.11,8.92]
[1729126205951,3.2233,155.13,155.09,2.7337]
[1729126206142,3.2233,155.13,155.11,8.92]
[1729126212754,13.54,155.16,155.11,8.92]
[1729126212953,4.62,155.16,155.13,8.92]
[1729126213154,4.62,155.18,155.15,8.92]
[1729126213355,4.62,155.18,155.15,12.09621545]
[1729126213558,4.62,155.18,155.15,3.17621545]
[1729126213559,3.2224,155.17,155.15,3.17621545]
[1729126213749,3.2224,155.17,155.14,12.1429]
[1729126213969,4.62,155.18,155.14,12.1429]
[1729126214261,7.8423,155.18,155.14,12.1429]
[1729126221756,13.54,155.18,155.09,2.7337]
[1729126221959,8.92,155.17,155.12,8.92]
[1729126222266,13.54,155.18,155.14,8.92]
[1729126223361,3.2227,155.16,155.14,8.92]
[1729126224267,3.2227,155.16,155.12,3.2233]
[1729126224466,3.2227,155.16,155.14,8.92]
[1729126230365,13.54,155.18,155.14,8.92]
[1729126231564,3.2227,155.16,155.14,8.92]
[1729126232674,3.2227,155.16,155.13,8.92]
[1729126236476,3.2227,155.16,155.14,8.92]
[1729126237770,1.3477,155.22,155.15,3.15292373]
[1729126237972,1.3477,155.22,155.18,8.92]
[1729126237973,4.62,155.21,155.18,8.92]
[1729126238174,4.62,155.21,155.17,8.92]
[1729126238374,3.2218,155.2,155.17,8.92]
[1729126238875,3.2218,155.2,155.18,3.24060344]
[1729126240873,3.2215,155.22,155.19,8.92]
[1729126241177,4.62,155.22,155.21,8.92]
[1729126242978,4.62,155.22,155.2,8.92]
[1729126243371,7.8413,155.22,155.2,8.92]
[1729126243570,3.2213,155.22,155.2,8.92]
[1729126250685,4.62,155.23,155.2,8.92]
[1729126250882,3.2216,155.21,155.2,8.92]
[1729126252781,3.2215,155.22,155.2,8.92]
[1729126263082,4.62,155.23,155.19,3.15287445]
[1729126263083,7.8412,155.23,155.21,8.92]
[1729126263285,7.8412,155.23,155.22,8.92]
[1729126266491,4.62,155.23,155.19,13.51984517]
[1729126266690,13.54,155.23,155.19,12.07254517]
[1729126267089,3.2218,155.2,155.19,12.07254517]
[1729126267295,3.2218,155.2,155.14,1.4362]
[1729126267296,8.92,155.2,155.14,1.4362]
[1729126267487,1.4509,155.26,155.14,1.4362]
[1729126267488,8.92,155.18,155.14,1.4362]
[1729126267690,3.2225,155.17,155.14,1.4362]
[1729126269406,3.2226,155.16,155.15,3.20698768]
[1729126269698,13.54,155.18,155.13,8.92]
[1729126270100,3.2225,155.17,155.13,8.92]
[1729126270301,13.54,155.18,155.13,8.92]
[1729126270702,3.223,155.15,155.12,8.92]
[1729126271400,8.92,155.17,155.12,8.92]
[1729126271709,3.2231,155.14,155.12,8.92]
[1729126275710,3.2231,155.14,155.12,12.1434]
[1729126275904,3.2235,155.12,155.1,1.3619]
[1729126276099,8.92,155.16,155.1,1.3619]
[1729126276300,8.92,155.14,155.09,12.144]
[1729126276604,13.54,155.14,155.09,12.144]
[1729126277207,3.224,155.1,155.07,6.48347672]
[1729126277408,3.224,155.1,155.08,8.92]
[1729126278412,3.224,155.1,155.09,8.92]
[1729126279411,3.2242,155.1,155.09,8.92]
[1729126282723,3.2242,155.1,155.08,12.1446]
[1729126282923,8.92,155.11,155.07,3.25917672]
[1729126283145,8.92,155.11,155.05,8.92]
[1729126283423,3.2254,155.05,155.01,3.2259]
[1729126283622,8.92,155.03,154.97,1.4556]
[1729126283823,8.92,155.02,154.94,1.3997]
[1729126284021,8.92,155.02,154.96,12.147]
[1729126284226,8.92,155.02,154.96,15.37768547]
[1729126284525,3.2264,155.0,154.96,15.37768547]
[1729126285219,8.92,155.02,154.96,15.37768547]
[1729126285419,8.92,155.0,154.96,3.23068547]
[1729126285620,4.62,155.03,154.97,8.92]
[1729126285822,8.92,155.02,154.97,12.07435515]
[1729126286729,3.2262,155.0,154.97,12.07435515]
[1729126288333,3.2261,155.01,154.97,15.30115515]
[1729126294835,3.2261,155.01,154.98,3.2267]
[1729126295932,12.1459,155.02,154.98,3.2267]
[1729126297234,16.7657,155.03,154.99,3.2263]
[1729126299339,12.146,155.02,154.97,3.15435515]
[1729126299637,12.146,155.02,154.96,8.92]
[1729126299840,12.146,155.02,154.96,12.16664626]
[1729126300040,12.146,155.02,154.97,8.92]
[1729126300440,12.146,155.02,154.98,3.2267]
[1729126300742,3.226,155.02,154.98,12.1467]
[1729126304041,4.62,155.03,154.98,8.92]
[1729126304341,8.92,155.02,154.98,8.92]
[1729126304541,8.92,155.02,154.97,12.07693672]
[1729126305041,8.92,155.02,154.99,3.2264]
[1729126305441,16.7658,155.03,154.99,3.2264]
[1729126307747,13.54,155.03,155.0,3.2262]
[1729126309548,16.7656,155.03,155.0,3.2262]
[1729126311146,3.2259,155.02,154.99,3.2264]
[1729126311336,8.92,155.01,154.99,3.2264]
[1729126311542,8.92,155.0,154.97,3.15693672]
[1729126311842,8.92,154.98,154.94,3.2273]
[1729126312041,8.92,154.98,154.94,3.2903269]
[1729126312346,8.92,154.98,154.95,3.2272]
[1729126312542,8.92,154.98,154.95,6.39973862]
[1729126313142,8.92,154.98,154.95,3.17253862]
[1729126313346,8.92,154.98,154.93,10.3593]
[1729126313541,8.92,154.98,154.93,1.4393]
[1729126313751,8.92,154.98,154.93,10.3593]
[1729126313942,12.1468,154.98,154.95,3.2272]
[1729126314144,8.92,154.98,154.95,3.2272]
[1729126314347,4.62,154.99,154.92,1.3952]
[1729126314348,3.2274,154.95,154.94,3.25450635]
[1729126314641,4.62,154.95,154.92,3.19079216]
[1729126314846,4.62,154.95,154.93,3.2276]
[1729126315042,4.62,154.95,154.92,12.09981836]
[1729126315350,4.62,154.95,154.88,2.8178]
[1729126315650,4.62,154.95,154.91,8.92]
[1729126315850,4.62,154.95,154.91,12.16695217]
[1729126316050,7.8474,154.95,154.92,3.2277]
[1729126316548,7.8474,154.95,154.91,12.16695217]
[1729126316549,4.62,154.95,154.91,12.16695217]
[1729126316750,4.62,154.95,154.92,3.2277]
[1729126318141,3.2275,154.94,154.91,3.24695217]
[1729126318347,3.2275,154.94,154.9,12.1482]
[1729126318647,4.62,154.95,154.91,8.92]
[1729126319149,4.62,154.95,154.92,3.2277]
[1729126319353,4.62,154.95,154.91,12.16338579]
[1729126319851,4.62,154.95,154.92,3.2277]
[1729126320150,4.62,154.95,154.91,12.16338579]
[1729126320348,4.62,154.95,154.93,3.2277]
[1729126320556,4.62,154.95,154.91,12.16338579]
[1729126321446,4.62,154.95,154.93,3.2275]
[1729126323652,7.8474,154.95,154.92,3.2278]
[1729126325742,8.92,154.94,154.91,3.24338579]
[1729126325949,8.92,154.94,154.88,10.3491]
[1729126326149,13.54,154.95,154.9,8.92]
[1729126326351,3.2276,154.94,154.91,3.228]
[1729126326655,3.2276,154.94,154.9,12.20804421]
[1729126327155,3.2276,154.94,154.91,3.228]
[1729126329053,3.2276,154.94,154.91,12.148]
[1729126329756,13.54,154.95,154.91,3.228]
[1729126329961,3.2275,154.94,154.91,12.148]
[1729126330161,4.62,154.95,154.91,8.92]
[1729126330353,4.62,154.95,154.92,3.2278]
[1729126330660,7.8475,154.95,154.92,3.2278]
[1729126331251,4.62,154.95,154.92,3.2278]
[1729126331457,3.2275,154.94,154.92,3.2278]
[1729126332164,13.54,154.95,154.9,3.28804421]
[1729126332359,3.2279,154.93,154.9,3.2282]
[1729126332554,3.2279,154.93,154.9,6.51021194]
[1729126332749,13.54,154.95,154.9,8.92]
[1729126332954,7.8475,154.95,154.92,3.2279]
[1729126333156,7.8475,154.95,154.93,3.15352082]
[1729126337959,16.7675,154.95,154.93,3.15352082]
[1729126338161,8.92,154.94,154.88,1.4291]
[1729126338368,12.1475,154.94,154.91,3.228]
[1729126338564,12.1475,154.94,154.92,3.22466071]
[1729126341165,12.1475,154.94,154.91,3.228]
[1729126341166,3.2281,154.92,154.89,3.2284]
[1729126341361,3.2281,154.92,154.89,6.42388692]
[1729126344266,8.92,154.93,154.9,3.2282]
[1729126344267,3.2278,154.93,154.9,3.2282]
[1729126344466,4.62,154.94,154.9,8.92]
[1729126344868,7.8476,154.94,154.91,3.228]
[1729126349276,1.326,154.97,154.89,3.19548692]
[1729126349277,1.326,154.97,154.92,8.92]
[1729126349480,1.326,154.97,154.89,3.19548692]
[1729126349481,13.54,154.96,154.91,8.92]
[1729126349966,7.8474,154.95,154.92,3.2279]
[1729126354972,12.1478,154.93,154.9,3.2283]
[1729126355471,8.92,154.92,154.88,1.4291]
[1729126355677,3.2282,154.91,154.88,1.4291]
[1729126356365,3.2282,154.91,154.89,3.2285]
[1729126356570,3.2282,154.91,154.9,3.17277334]
[1729126360970,3.2278,154.93,154.9,3.2283]
[1729126361176,12.1478,154.93,154.91,3.23702382]
[1729126367493,12.1479,154.92,154.91,3.23702382]
[1729126367692,12.1479,154.92,154.87,8.92]
[1729126367994,12.1479,154.92,154.89,3.2283]
[1729126368192,3.2283,154.91,154.89,3.1785798]
[1729126368394,3.2283,154.91,154.88,3.2287]
[1729126368705,3.2283,154.91,154.89,3.26446991]
[1729126374593,4.62,154.92,154.89,3.26446991]
[1729126374904,12.1483,154.91,154.86,8.92]
[1729126375396,12.1483,154.91,154.88,3.2287]
[1729126375591,12.1483,154.91,154.89,3.17220864]
[1729126375795,3.2287,154.89,154.85,1.3647]
[1729126375994,3.2287,154.89,154.86,3.2291]
[1729126376196,8.92,154.91,154.85,1.3647]
[1729126376401,8.92,154.91,154.85,10.2847]
[1729126376600,3.2287,154.89,154.86,3.2291]
[1729126377399,7.8483,154.91,154.88,3.2286]
[1729126377599,7.8483,154.91,154.89,3.27726964]
[1729126380208,8.92,154.93,154.88,8.92]
[1729126380505,12.1478,154.93,154.88,8.92]
[1729126380705,4.62,154.92,154.88,8.92]
[1729126381395,4.62,154.92,154.89,3.2284]
[1729126381608,4.62,154.92,154.89,6.50028027]
[1729126385303,4.62,154.92,154.89,3.27188027]
[1729126385605,13.54,154.92,154.87,8.92]
[1729126385995,13.54,154.92,154.88,8.92]
[1729126386402,16.768,154.92,154.89,3.2285]
[1729126386624,16.768,154.92,154.9,3.24809879]
[1729126391603,7.848,154.92,154.9,3.24809879]
[1729126392504,7.848,154.92,154.88,3.2287]
[1729126393112,3.2282,154.91,154.88,3.2287]
[1729126394315,4.62,154.92,154.89,3.2284]
[1729126394517,4.62,154.92,154.89,6.49199637]
[1729126394813,4.62,154.92,154.89,3.2284]
[1729126395315,4.62,154.92,154.89,6.47100887]
[1729126397002,7.8479,154.92,154.89,6.47100887]
[1729126403012,3.2283,154.9,154.89,3.24260887]
[1729126403321,8.92,154.91,154.86,8.92]
[1729126404319,3.2286,154.89,154.86,12.149]
[1729126404716,3.2293,154.86,154.83,4.5974]
[1729126404926,3.2293,154.86,154.83,13.5174]
[1729126405825,3.2293,154.86,154.84,3.2296]
[1729126406226,3.2293,154.86,154.83,1.3677]
[1729126406423,3.2293,154.86,154.84,8.92]
[1729126413324,3.2294,154.85,154.82,3.2298]
[1729126413633,8.92,154.87,154.82,12.1498]
[1729126415932,3.2295,154.85,154.82,12.1498]
[1729126416830,8.92,154.86,154.82,8.92]
[1729126417033,8.92,154.85,154.81,91.57269999]
[1729126417331,8.92,154.85,154.81,12.11779169]
[1729126417924,8.92,154.85,154.81,3.19779169]
[1729126418130,3.2297,154.84,154.81,3.2301]
[1729126418333,3.2297,154.84,154.81,15.34594606]
[1729126421943,3.2299,154.83,154.81,3.19584606]
[1729126422135,3.2299,154.83,154.8,12.1504]
[1729126422437,3.2299,154.83,154.8,8.92]
[1729126422639,3.2299,154.83,154.81,3.2302]
[1729126423341,13.54,154.84,154.8,3.20800581]
[1729126423537,13.54,154.84,154.79,8.92]
[1729126423740,3.2304,154.8,154.74,4.62]
[1729126423941,3.2304,154.8,154.78,8.92]
[1729126425438,3.2304,154.8,154.78,12.1508]
[1729126426440,4.62,154.84,154.78,8.92]
[1729126426743,3.2303,154.81,154.78,8.92]
[1729126426938,3.2303,154.81,154.78,12.1507]
[1729126427334,3.2305,154.8,154.78,12.1507]
[1729126428143,8.92,154.82,154.78,12.1507]
[1729126428342,3.2303,154.81,154.78,12.1507]
[1729126429447,3.2306,154.8,154.77,3.2309]
[1729126429644,3.2306,154.8,154.77,12.1509]
[1729126430645,4.62,154.84,154.78,8.92]
[1729126430945,3.2299,154.83,154.8,3.2303]
[1729126431245,4.62,154.84,154.81,3.20539639]
[1729126431443,3.2298,154.83,154.81,3.20539639]
[1729126432754,3.2292,154.86,154.83,3.2297]
[1729126432937,4.62,154.85,154.83,3.27551444]
[1729126434543,7.8495,154.85,154.83,3.27551444]
[1729126436647,7.8495,154.85,154.82,12.1499]
[1729126436851,3.2297,154.84,154.8,12.1503]
[1729126437245,1.3425,154.91,154.83,8.92]
[1729126437246,4.62,154.89,154.83,8.92]
[1729126437550,4.62,154.89,154.85,8.92]
[1729126437954,7.8487,154.89,154.86,3.2291]
[1729126438248,4.62,154.88,154.86,12.1491]
[1729126438945,4.62,154.88,154.85,3.27961438]